fUST/lending_fUST_20240519
["ID","MTS","AMOUNT","RATE_DAILY","PERIOD"]
[327466529,1716090642303,-151.270271,0.00016338,2]
[327466530,1716090642312,-905.90068974,0.00016338,2]
[327466540,1716090643723,-4929.68281362,0.00016338,2]
[327466541,1716090643793,-1703.05681937,0.00016338,2]
[327466542,1716090643805,-2428.06465339,0.00016338,2]
[327466543,1716090643817,-2369.92097165,0.00016338,2]
[327466544,1716090643828,-350.999985,0.00016338,2]
[327466545,1716090643840,-6542.478,0.00016338,2]
[327466583,1716090646383,-11054.32354819,0.00016338,2]
[327466584,1716090646477,-341.4768836,0.00016338,2]
[327466585,1716090646490,-58262.09563544,0.00016338,2]
[327466586,1716090646500,-6276.62393304,0.000164,2]
[327466587,1716090646510,-186.228491,0.000164,2]
[327466588,1716090646519,-186.228489,0.000164,2]
[327466589,1716090646529,-349.750258,0.000164,2]
[327466590,1716090646539,-349.750255,0.000164,2]
[327466591,1716090646549,-177.482008,0.000164,2]
[327466592,1716090646559,-177.482014,0.000164,2]
[327466593,1716090646569,-208.127262,0.000164,2]
[327466594,1716090646578,-208.127266,0.000164,2]
[327466595,1716090646588,-1684.18553122,0.00016436,2]
[327466596,1716090646597,-303.70428179,0.00016436,2]
[327466597,1716090646607,-2117.90986102,0.00016436,2]
[327466598,1716090646618,-240.53290925,0.00016436,2]
[327466599,1716090646628,-155.38748809,0.00016436,2]
[327466600,1716090646638,-155.17419685,0.00016436,2]
[327466601,1716090646647,-191.46883117,0.00016436,2]
[327466602,1716090646657,-275.64874326,0.00016436,2]
[327466603,1716090646667,-446.62289513,0.00016436,2]
[327466604,1716090646676,-284.35424035,0.00016436,2]
[327466605,1716090646685,-154.86062544,0.00016436,2]
[327466606,1716090646695,-586.4127612,0.00016436,2]
[327466607,1716090646704,-461.19333981,0.00016436,2]
[327466608,1716090646714,-263.31389854,0.00016436,2]
[327466609,1716090646723,-187.46211037,0.00016436,2]
[327466610,1716090646733,-155.13988203,0.00016436,2]
[327466611,1716090646748,-945.58795248,0.00016436,2]
[327466612,1716090646757,-2807.01482779,0.00016436,2]
[327466613,1716090646767,-65.39683811,0.00016436,2]
[327466614,1716090708074,487.69082555,9.999e-05,2]
[327466615,1716090716347,513.55572627,9.999e-05,2]
[327466626,1716091088456,300.21441012,9.999e-05,2]
[327466628,1716091244850,525.70649232,9.999e-05,2]
[327466632,1716091525472,156.41170767,9.999e-05,2]
[327466635,1716091769570,525.70649232,9.999e-05,2]
[327466638,1716091829612,150.0,0.00012356,3]
[327466689,1716091832448,-156.41170767,0.00015811,2]
[327466691,1716091832461,-244.581,0.00015812,2]
[327466694,1716091832474,-1270.0,0.00016049,2]
[327466696,1716091832491,-527.97039226,0.0001605,2]
[327466699,1716091832507,-2041.22646375,0.00016141,2]
[327466701,1716091832519,-399.64855385,0.00016336,2]
[327466703,1716091832529,-2630.52253869,0.00016338,2]
[327466758,1716091843709,-34254.78133494,0.00016338,2]
[327466782,1716092296522,156.41170767,9.999e-05,2]
[327466784,1716092439457,150.0,0.00012384,3]
[327466785,1716092790088,156.41170767,9.999e-05,2]
[327466896,1716093038903,-156.41170767,0.00015599,2]
[327466898,1716093038913,-189.91157371,0.00015863,2]
[327466900,1716093038922,-154.27674757,0.00015864,2]
[327466902,1716093038933,-40.67979291,0.00015864,2]
[327466904,1716093038942,-1270.0,0.00016,2]
[327466906,1716093038952,-194.95654047,0.00016051,2]
[327466908,1716093038964,-194.95654047,0.00016237,2]
[327466910,1716093038974,-2288.41027299,0.00016338,2]
[327466912,1716093038983,-94.2589283,0.00016436,2]
[327466914,1716093038992,-652.24676081,0.00016436,2]
[327466916,1716093039003,-264.54391882,0.00016436,2]
[327466918,1716093039012,-516.03123056,0.00016436,2]
[327466920,1716093039022,-536.43900872,0.00016436,2]
[327466921,1716093039031,-494.55807229,0.00016437,2]
[327466923,1716093039041,-322.10674617,0.00016438,3]
[327466926,1716093039052,-18546.24383458,0.00016438,3]
[327466927,1716093039062,-502.13040343,0.00016438,2]
[327466929,1716093039072,-504.39652072,0.00016438,2]
[327466931,1716093039081,-564.89322549,0.00016438,2]
[327466933,1716093039091,-500.0,0.00016438,2]
[327466935,1716093039101,-501.05297207,0.00016438,2]
[327466937,1716093039111,-501.47960752,0.00016438,2]
[327466940,1716093039120,-502.58786677,0.00016438,2]
[327466943,1716093039129,-500.95489169,0.00016438,2]
[327466945,1716093039139,-293.6154737,0.00016438,2]
[327466947,1716093039148,-500.4929191,0.00016438,2]
[327466949,1716093039158,-68.58778007,0.00016438,2]
[327466953,1716093039179,-622.94221993,0.00016438,2]
[327466955,1716093039189,-500.0,0.00016438,2]
[327466957,1716093039198,-500.0,0.00016438,2]
[327466959,1716093039207,-500.0,0.00016438,2]
[327466961,1716093039217,-500.0,0.00016438,2]
[327466963,1716093039228,-502.03880645,0.00016438,2]
[327466965,1716093039238,-500.79706091,0.00016438,2]
[327466967,1716093039248,-732.08,0.00016438,2]
[327466969,1716093039257,-504.5,0.00016438,2]
[327466970,1716093039267,-501.98901152,0.00016438,2]
[327466973,1716093039277,-500.0,0.00016438,2]
[327466975,1716093039287,-500.0,0.00016438,2]
[327466977,1716093039297,-500.0,0.00016438,2]
[327466979,1716093039307,-501.02828109,0.00016438,2]
[327466981,1716093039319,-500.0,0.00016438,2]
[327466983,1716093039329,-501.34033811,0.00016438,2]
[327466985,1716093039338,-437.05459369,0.00016438,2]
[327466987,1716093039348,-502.35941355,0.00016438,2]
[327466989,1716093039358,-500.0,0.00016438,2]
[327466991,1716093039368,-500.0,0.00016438,2]
[327466993,1716093039378,-501.42245511,0.00016438,2]
[327466995,1716093039388,-1096.29,0.00016438,2]
[327466997,1716093039398,-500.0,0.00016438,2]
[327466999,1716093039408,-641.90499588,0.00016438,2]
[327467001,1716093039419,-500.0,0.00016438,2]
[327467003,1716093039428,-515.63,0.00016438,2]
[327467005,1716093039438,-500.0,0.00016438,2]
[327467007,1716093039448,-500.0,0.00016438,2]
[327467009,1716093039458,-1809.3,0.00016438,2]
[327467011,1716093039468,-500.0,0.00016438,2]
[327467013,1716093039479,-501.54268776,0.00016438,2]
[327467015,1716093039489,-189.30563387,0.00016438,2]
[327467017,1716093039499,-500.0,0.00016438,2]
[327467019,1716093039509,-743.3,0.00016438,2]
[327467021,1716093039519,-501.79455223,0.00016438,2]
[327467023,1716093039530,-500.0,0.00016438,2]
[327467025,1716093039541,-502.76529662,0.00016438,2]
[327467027,1716093039552,-501.67931998,0.00016438,2]
[327467029,1716093039562,-504.99885589,0.00016438,2]
[327467031,1716093039572,-500.0,0.00016438,2]
[327467033,1716093039582,-500.0,0.00016438,2]
[327467035,1716093039592,-500.0,0.00016438,2]
[327467037,1716093039603,-500.0,0.00016438,2]
[327467039,1716093039614,-495.46563909,0.00016438,2]
[327467041,1716093039625,-500.0,0.00016438,2]
[327467043,1716093039635,-151.44629471,0.00016438,2]
[327467045,1716093039645,-500.0,0.00016438,2]
[327467047,1716093039655,-500.0,0.00016438,2]
[327467049,1716093039665,-502.23793183,0.00016438,2]
[327467051,1716093039675,-500.91073716,0.00016438,2]
[327467053,1716093039685,-501.55766916,0.00016438,2]
[327467055,1716093039696,-503.46805852,0.00016438,2]
[327467058,1716093039706,-505.23445047,0.00016438,2]
[327467059,1716093039715,-500.0,0.00016438,2]
[327467061,1716093039725,-505.50113796,0.00016438,2]
[327467063,1716093039735,-58.22251931,0.00016438,2]
[327467122,1716093041940,-444.87517957,0.00016438,2]
[327467124,1716093041950,-501.21709221,0.00016438,2]
[327467125,1716093041960,-503.84607371,0.00016438,2]
[327467126,1716093041973,-500.0,0.00016438,2]
[327467127,1716093041983,-529.36991543,0.00016438,2]
[327467128,1716093041992,-497.61036592,0.00016438,2]
[327467129,1716093042001,-505.88200162,0.00016438,2]
[327467130,1716093042011,-500.7007036,0.00016438,2]
[327467131,1716093042020,-500.0,0.00016438,2]
[327467132,1716093042030,-500.0,0.00016438,2]
[327467133,1716093042039,-501.68004412,0.00016438,2]
[327467134,1716093042050,-691.98,0.00016438,2]
[327467135,1716093042059,-500.0,0.00016438,2]
[327467136,1716093042069,-500.0,0.00016438,2]
[327467137,1716093042078,-500.0,0.00016438,2]
[327467138,1716093042087,-500.0,0.00016438,2]
[327467139,1716093042096,-186.76296131,0.00016438,2]
[327467140,1716093042104,-500.0,0.00016438,2]
[327467141,1716093042114,-500.0,0.00016438,2]
[327467142,1716093042123,-901.62,0.00016438,2]
[327467143,1716093042133,-500.0,0.00016438,2]
[327467144,1716093042142,-453.38739599,0.00016438,2]
[327467181,1716093044036,-247.63260401,0.00016438,2]
[327467182,1716093044048,-500.0,0.00016438,2]
[327467183,1716093044057,-500.0,0.00016438,2]
[327467184,1716093044067,-187.867396,0.00016438,2]
[327467185,1716093044102,-312.132604,0.00016438,2]
[327467186,1716093044111,-214.89502116,0.00016438,2]
[327467187,1716093044120,-501.77276634,0.00016438,2]
[327467188,1716093044129,-500.0,0.00016438,2]
[327467189,1716093044138,-500.0,0.00016438,2]
[327467190,1716093044147,-502.807864,0.00016438,2]
[327467191,1716093044156,-500.0,0.00016438,2]
[327467192,1716093044165,-1564.84,0.00016438,2]
[327467193,1716093044174,-500.0,0.00016438,2]
[327467194,1716093044183,-500.0,0.00016438,2]
[327467195,1716093044191,-501.58985243,0.00016438,2]
[327467196,1716093044200,-500.0,0.00016438,2]
[327467197,1716093044209,-507.62041099,0.00016438,2]
[327467198,1716093044218,-500.0,0.00016438,2]
[327467199,1716093044227,-500.0,0.00016438,2]
[327467200,1716093044235,-500.0,0.00016438,2]
[327467201,1716093044245,-500.0,0.00016438,2]
[327467202,1716093044254,-502.06845693,0.00016438,2]
[327467204,1716093044263,-637.95426484,0.00016438,2]
[327467205,1716093044273,-503.34815467,0.00016438,2]
[327467207,1716093044282,-568.33257309,0.00016438,2]
[327467208,1716093044291,-1377.56,0.00016438,2]
[327467210,1716093044300,-501.06752353,0.00016438,2]
[327467211,1716093044309,-500.0,0.00016438,2]
[327467212,1716093044318,-500.0,0.00016438,2]
[327467213,1716093044329,-500.0,0.00016438,2]
[327467214,1716093044338,-508.50347574,0.00016438,2]
[327467215,1716093044347,-500.0,0.00016438,2]
[327467216,1716093044356,-517.66,0.00016438,2]
[327467217,1716093044366,-500.0,0.00016438,2]
[327467218,1716093044375,-501.61008804,0.00016438,2]
[327467219,1716093044384,-503.01670455,0.00016438,2]
[327467220,1716093044394,-524.61266486,0.00016438,2]
[327467221,1716093044403,-500.0,0.00016438,2]
[327467222,1716093044412,-500.0,0.00016438,2]
[327467223,1716093044422,-500.0,0.00016438,2]
[327467224,1716093044431,-503.74802448,0.00016438,2]
[327467225,1716093044440,-1102.64,0.00016438,2]
[327467226,1716093044450,-502.21310213,0.00016438,2]
[327467227,1716093044459,-500.0,0.00016438,2]
[327467228,1716093044468,-500.0,0.00016438,2]
[327467229,1716093044480,-502.63925618,0.00016438,2]
[327467230,1716093044489,-1030.45146242,0.00016438,2]
[327467327,1716093495164,156.41170767,9.999e-05,2]
[327467330,1716093643554,2012.0,0.00023,30]
[327467331,1716093962716,156.41170767,9.999e-05,2]
[327467500,1716094238191,-156.41170767,0.00015599,2]
[327467501,1716094238201,-189.91157371,0.000156,2]
[327467502,1716094238211,-1270.0,0.00016,2]
[327467503,1716094238220,-180.34087452,0.00016336,2]
[327467504,1716094238230,-614.14855143,0.00016338,2]
[327467506,1716094240253,-15249.96998017,0.00016338,2]
[327467524,1716094689781,156.41170767,9.999e-05,2]
[327467525,1716094756822,154.84515485,9.999e-05,2]
[327467531,1716095091437,500.0,0.00015,2]
[327467532,1716095095741,500.0,0.000145,2]
[327467533,1716095099566,500.0,0.00014,2]
[327467534,1716095104400,500.0,0.000135,2]
[327467535,1716095108085,500.0,0.00013,2]
[327467536,1716095191847,156.41170767,9.999e-05,2]
[327467537,1716095206386,154.84515485,9.999e-05,2]
[327467576,1716095428680,150.0,0.00012722,3]
[327467615,1716095443452,-394.22731001,0.000155,2]
[327467809,1716095511452,328.36363781,9.999e-05,2]
[327467810,1716095549961,154.84515485,9.999e-05,2]
[327467811,1716095601222,228.37673985,9.999e-05,2]
[327467813,1716095729121,154.86062544,9.999e-05,2]
[327467815,1716096037839,423.8,0.00014374,2]
[327467816,1716096038013,423.8,0.00014718,2]
[327467817,1716096038047,423.8,0.00013686,2]
[327467818,1716096038080,423.8,0.00012654,3]
[327467819,1716096038340,423.8,0.00012654,2]
[327467820,1716096038394,423.8,0.00012998,2]
[327467821,1716096038433,423.8,0.0001403,2]
[327467822,1716096038492,423.8,0.00013342,2]
[327467823,1716096048586,150.0,0.00013342,2]
[327467824,1716096048628,150.0,0.00012654,3]
[327467825,1716096048658,150.0,0.00014718,2]
[327467826,1716096048691,150.0,0.00013686,2]
[327467827,1716096048745,150.0,0.0001403,2]
[327467828,1716096048776,150.0,0.00012654,2]
[327467829,1716096048807,150.0,0.00014374,2]
[327467830,1716096048837,150.0,0.00012998,2]
[327467831,1716096380848,1002.2597349,0.00014784,2]
[327467832,1716096444194,1550.2487535,0.00015,2]
[327467835,1716096628155,150.0,0.00014741,2]
[327467836,1716096628186,150.0,0.00013384,2]
[327467837,1716096628223,150.0,0.00012705,3]
[327467838,1716096628263,150.0,0.00014402,2]
[327467839,1716096628410,150.0,0.00014062,2]
[327467840,1716096628593,150.0,0.00013723,2]
[327467841,1716096628626,150.0,0.00012705,2]
[327467842,1716096628679,150.0,0.00013044,2]
[327467887,1716096640441,150.0,0.00012705,3]
[327467938,1716096643811,-2114.69992538,0.00015061,2]
[327467940,1716096643821,-150.0,0.00015081,2]
[327467942,1716096643832,-4221.46001999,0.00015175,2]
[327467944,1716096643842,-416.98047207,0.00015258,2]
[327467946,1716096643852,-150.0,0.0001542,2]
[327467948,1716096643861,-105.77268999,0.000155,2]
[327467950,1716096643871,-189.91157371,0.000156,2]
[327467952,1716096643882,-150.0,0.00015759,2]
[327467954,1716096643891,-161.05337308,0.0001589,3]
[327467956,1716096643900,-153.0,0.0001589,2]
[327467958,1716096643910,-153.0,0.0001589,2]
[327467961,1716096643920,-153.0,0.0001589,2]
[327467964,1716096643930,-153.0,0.0001589,2]
[327467967,1716096643939,-153.0,0.0001589,2]
[327467970,1716096643949,-153.0,0.0001589,2]
[327467973,1716096643958,-153.0,0.0001589,2]
[327467976,1716096643968,-291.2684803,0.0001589,2]
[327467979,1716096643977,-153.0,0.0001589,2]
[327467981,1716096643987,-291.2684803,0.0001589,2]
[327467983,1716096643996,-153.0,0.0001589,2]
[327467985,1716096644005,-155.6863286,0.000159,2]
[327467987,1716096644015,-291.2684803,0.000159,2]
[327467989,1716096644024,-153.0,0.000159,2]
[327467991,1716096644034,-307.4014132,0.000159,2]
[327467993,1716096644043,-153.0,0.000159,2]
[327467995,1716096644052,-291.2684803,0.000159,2]
[327467997,1716096644061,-153.0,0.000159,2]
[327467998,1716096644071,-153.0,0.000159,2]
[327468000,1716096644080,-524.60984178,0.00016,2]
[327468003,1716096644090,-153.0,0.00016164,2]
[327468005,1716096644099,-153.0,0.00016164,2]
[327468007,1716096644109,-153.0,0.00016164,2]
[327468008,1716096644118,-153.0,0.00016164,2]
[327468010,1716096644128,-153.0,0.00016164,2]
[327468012,1716096644137,-153.0,0.00016164,2]
[327468014,1716096644146,-150.0,0.00016203,2]
[327468016,1716096644156,-349.69248461,0.00016238,2]
[327468018,1716096644165,-150.40028902,0.00016273,2]
[327468020,1716096644175,-73023.8814684,0.00016338,2]
[327468022,1716096644185,-2000.0,0.00016338,2]
[327468024,1716096644195,-239.0209,0.00016356,2]
[327468026,1716096644204,-105233.9726879,0.000164,2]
[327468028,1716096644213,-9273.12191729,0.00016436,3]
[327468030,1716096644223,-1231.5600968,0.00016436,2]
[327468032,1716096644233,-237.16938398,0.00016436,2]
[327468035,1716096644248,-2408.54357645,0.00016436,2]
[327468037,1716096644258,-2795.18883811,0.00016436,2]
[327468039,1716096644267,-186.84975915,0.00016436,2]
[327468041,1716096644277,-161.45252522,0.00016436,2]
[327468043,1716096644287,-172.62848484,0.00016436,2]
[327468045,1716096644296,-723.51451382,0.00016436,2]
[327468047,1716096644306,-236.8730716,0.00016436,2]
[327468048,1716096644316,-1888.37610231,0.00016436,2]
[327468051,1716096644327,-293.30446453,0.00016436,2]
[327468053,1716096644337,-285.14504182,0.00016436,2]
[327468055,1716096644346,-155.02825935,0.00016436,2]
[327468057,1716096644356,-2594.3193844,0.00016436,2]
[327468059,1716096644365,-909.20919161,0.00016436,2]
[327468061,1716096644375,-311.16731375,0.00016436,2]
[327468062,1716096644385,-155.61687245,0.00016436,2]
[327468064,1716096644394,-208.36578461,0.00016436,2]
[327468066,1716096644404,-156.34424716,0.00016436,2]
[327468068,1716096644414,-155.18249035,0.00016436,2]
[327468070,1716096644424,-708.12246612,0.00016436,2]
[327468072,1716096644433,-220.99979965,0.00016436,2]
[327468074,1716096644442,-1338.26302922,0.00016436,2]
[327468076,1716096644451,-529.90925899,0.00016436,2]
[327468078,1716096644460,-269.98788491,0.00016436,2]
[327468080,1716096644471,-155.2728515,0.00016436,2]
[327468082,1716096644480,-155.15173919,0.00016436,2]
[327468085,1716096644490,-457.37351305,0.00016436,2]
[327468087,1716096644499,-178.82874137,0.00016436,2]
[327468089,1716096644509,-15482.30612766,0.00016436,2]
[327468090,1716096644518,-631.99085652,0.00016436,2]
[327468092,1716096644527,-236.48364785,0.00016436,2]
[327468095,1716096644538,-151.0,0.00016436,2]
[327468097,1716096644547,-229.060896,0.00016436,2]
[327468099,1716096644557,-151.0,0.00016436,2]
[327468101,1716096644566,-151.0,0.00016436,2]
[327468103,1716096644576,-151.0,0.00016436,2]
[327468105,1716096644585,-151.0,0.00016436,2]
[327468107,1716096644593,-172.80336,0.00016436,2]
[327468108,1716096644603,-151.0,0.00016436,2]
[327468111,1716096644612,-151.0,0.00016436,2]
[327468113,1716096644621,-222.520986,0.00016436,2]
[327468115,1716096644630,-175.138443,0.00016436,2]
[327468117,1716096644640,-151.0,0.00016436,2]
[327468118,1716096644649,-153.495659,0.00016436,2]
[327468120,1716096644658,-151.0,0.00016436,2]
[327468122,1716096644668,-151.0,0.00016436,2]
[327468124,1716096644678,-249.142944,0.00016436,2]
[327468126,1716096644687,-151.0,0.00016436,2]
[327468128,1716096644696,-151.0,0.00016436,2]
[327468130,1716096644705,-151.0,0.00016436,2]
[327468132,1716096644715,-151.0,0.00016436,2]
[327468134,1716096644725,-180.655402,0.00016436,2]
[327468136,1716096644734,-403.802852,0.00016436,2]
[327468137,1716096644743,-403.802852,0.00016436,2]
[327468139,1716096644753,-403.802852,0.00016436,2]
[327468141,1716096644762,-403.802852,0.00016436,2]
[327468143,1716096644772,-403.802852,0.00016436,2]
[327468145,1716096644781,-403.802852,0.00016436,2]
[327468147,1716096644791,-403.802852,0.00016436,2]
[327468149,1716096644800,-403.802852,0.00016436,2]
[327468151,1716096644809,-403.802852,0.00016436,2]
[327468153,1716096644819,-403.802852,0.00016436,2]
[327468155,1716096644828,-403.802852,0.00016436,2]
[327468157,1716096644837,-403.802852,0.00016436,2]
[327468159,1716096644846,-403.802852,0.00016436,2]
[327468161,1716096644855,-403.802852,0.00016436,2]
[327468163,1716096644864,-403.802852,0.00016436,2]
[327468165,1716096644874,-403.802852,0.00016436,2]
[327468167,1716096644885,-403.802852,0.00016436,2]
[327468169,1716096644894,-403.802852,0.00016436,2]
[327468171,1716096644903,-403.802852,0.00016436,2]
[327468173,1716096644913,-403.802845,0.00016436,2]
[327468184,1716096645016,-151.0,0.00016436,2]
[327468186,1716096645027,-151.0,0.00016436,2]
[327468188,1716096645037,-151.0,0.00016436,2]
[327468190,1716096645046,-151.0,0.00016436,2]
[327468192,1716096645056,-151.0,0.00016436,2]
[327468194,1716096645065,-151.0,0.00016436,2]
[327468196,1716096645075,-151.0,0.00016436,2]
[327468198,1716096645084,-151.0,0.00016436,2]
[327468200,1716096645095,-197.073672,0.00016436,2]
[327468202,1716096645104,-151.0,0.00016436,2]
[327468204,1716096645113,-204.920597,0.00016436,2]
[327468206,1716096645122,-2500.0,0.00016436,2]
[327468208,1716096645131,-2500.0,0.00016436,2]
[327468210,1716096645140,-151.0,0.00016436,2]
[327468212,1716096645150,-2500.0,0.00016436,2]
[327468214,1716096645159,-151.0,0.00016436,2]
[327468216,1716096645168,-2500.0,0.00016436,2]
[327468218,1716096645177,-151.0,0.00016436,2]
[327468220,1716096645187,-2500.0,0.00016436,2]
[327468222,1716096645197,-151.0,0.00016436,2]
[327468224,1716096645206,-2500.0,0.00016436,2]
[327468226,1716096645216,-151.0,0.00016436,2]
[327468228,1716096645225,-2500.0,0.00016436,2]
[327468230,1716096645234,-151.0,0.00016436,2]
[327468232,1716096645247,-2500.0,0.00016436,2]
[327468234,1716096645257,-151.0,0.00016436,2]
[327468236,1716096645266,-2500.0,0.00016436,2]
[327468238,1716096645275,-151.0,0.00016436,2]
[327468239,1716096645285,-2500.0,0.00016436,2]
[327468241,1716096645295,-151.0,0.00016436,2]
[327468243,1716096645305,-2500.0,0.00016436,2]
[327468245,1716096645315,-151.0,0.00016436,2]
[327468248,1716096645327,-151.0,0.00016436,2]
[327468250,1716096645337,-167.438172,0.00016436,2]
[327468252,1716096645346,-2500.0,0.00016436,2]
[327468254,1716096645356,-2500.0,0.00016436,2]
[327468256,1716096645365,-2500.0,0.00016436,2]
[327468257,1716096645374,-2500.0,0.00016436,2]
[327468259,1716096645384,-2500.0,0.00016436,2]
[327468262,1716096645393,-2500.0,0.00016436,2]
[327468264,1716096645403,-2500.0,0.00016436,2]
[327468265,1716096645412,-2500.0,0.00016436,2]
[327468267,1716096645422,-2500.0,0.00016436,2]
[327468270,1716096645431,-151.0,0.00016436,2]
[327468272,1716096645442,-151.0,0.00016436,2]
[327468273,1716096645451,-154.527627,0.00016436,2]
[327468275,1716096645460,-158.586674,0.00016436,2]
[327468277,1716096645470,-158.586674,0.00016436,2]
[327468279,1716096645479,-158.586674,0.00016436,2]
[327468281,1716096645489,-158.586674,0.00016436,2]
[327468283,1716096645498,-151.0,0.00016436,2]
[327468285,1716096645508,-158.586674,0.00016436,2]
[327468287,1716096645518,-158.586674,0.00016436,2]
[327468289,1716096645527,-180.883348,0.00016436,2]
[327468291,1716096645536,-158.586674,0.00016436,2]
[327468293,1716096645546,-158.586674,0.00016436,2]
[327468295,1716096645555,-158.586674,0.00016436,2]
[327468297,1716096645565,-158.586674,0.00016436,2]
[327468299,1716096645574,-158.586674,0.00016436,2]
[327468301,1716096645584,-158.586674,0.00016436,2]
[327468303,1716096645593,-158.586674,0.00016436,2]
[327468305,1716096645603,-158.586674,0.00016436,2]
[327468308,1716096645616,-158.586674,0.00016436,2]
[327468310,1716096645625,-158.586674,0.00016436,2]
[327468311,1716096645635,-158.586674,0.00016436,2]
[327468313,1716096645644,-158.586674,0.00016436,2]
[327468314,1716096645654,-158.586674,0.00016436,2]
[327468316,1716096645663,-158.586677,0.00016436,2]
[327468318,1716096645672,-826.950233,0.00016436,2]
[327468321,1716096645682,-826.950233,0.00016436,2]
[327468322,1716096645691,-826.950233,0.00016436,2]
[327468325,1716096645700,-826.950233,0.00016436,2]
[327468327,1716096645710,-826.950233,0.00016436,2]
[327468329,1716096645720,-826.950233,0.00016436,2]
[327468330,1716096645729,-826.950233,0.00016436,2]
[327468332,1716096645739,-826.950233,0.00016436,2]
[327468334,1716096645748,-826.950233,0.00016436,2]
[327468336,1716096645757,-826.950233,0.00016436,2]
[327468338,1716096645767,-826.950233,0.00016436,2]
[327468340,1716096645776,-826.950233,0.00016436,2]
[327468342,1716096645786,-826.950233,0.00016436,2]
[327468344,1716096645795,-826.950233,0.00016436,2]
[327468346,1716096645805,-826.950233,0.00016436,2]
[327468348,1716096645814,-826.950233,0.00016436,2]
[327468350,1716096645823,-826.950233,0.00016436,2]
[327468352,1716096645833,-826.950233,0.00016436,2]
[327468354,1716096645843,-826.950233,0.00016436,2]
[327468356,1716096645852,-826.950242,0.00016436,2]
[327468358,1716096645861,-151.0,0.00016436,2]
[327468360,1716096645871,-151.0,0.00016436,2]
[327468362,1716096645880,-151.0,0.00016436,2]
[327468364,1716096645889,-151.0,0.00016436,2]
[327468366,1716096645898,-151.0,0.00016436,2]
[327468368,1716096645907,-152.16293,0.00016436,2]
[327468370,1716096645917,-151.0,0.00016436,2]
[327468372,1716096645927,-1497.90696313,0.00016437,2]
[327468374,1716096645936,-155.14931761,0.00016437,2]
[327468376,1716096645946,-500.0,0.00016438,2]
[327468378,1716096645956,-1198.87,0.00016438,2]
[327468380,1716096645965,-483.10024572,0.00016438,2]
[327468382,1716096645975,-501.84693977,0.00016438,2]
[327468384,1716096645985,-502.60054674,0.00016438,2]
[327468386,1716096645994,-501.37836938,0.00016438,2]
[327468388,1716096646003,-506.36847936,0.00016438,2]
[327468390,1716096646012,-503.41874872,0.00016438,2]
[327468392,1716096646022,-503.27361899,0.00016438,2]
[327468394,1716096646031,-514.58579365,0.00016438,2]
[327468396,1716096646040,-758.55,0.00016438,2]
[327468397,1716096646049,-500.0,0.00016438,2]
[327468400,1716096646059,-238.42352075,0.00016438,2]
[327468401,1716096646068,-502.29340884,0.00016438,2]
[327468403,1716096646078,-500.0,0.00016438,2]
[327468405,1716096646087,-503.92231739,0.00016438,2]
[327468407,1716096646097,-500.0,0.00016438,2]
[327468409,1716096646106,-503.8924678,0.00016438,2]
[327468411,1716096646115,-1879.74,0.00016438,2]
[327468413,1716096646124,-500.0,0.00016438,2]
[327468415,1716096646133,-500.0,0.00016438,2]
[327468417,1716096646143,-502.97852512,0.00016438,2]
[327468419,1716096646152,-630.09005581,0.00016438,2]
[327468421,1716096646162,-186.91336787,0.00016438,2]
[327468423,1716096646171,-500.0,0.00016438,2]
[327468425,1716096646181,-1217.28,0.00016438,2]
[327468427,1716096646190,-500.0,0.00016438,2]